bitfinex-derivatives/quotes_BTCF0:USTF0_20241227
["timestamp","ask_amount","ask_price","bid_price","bid_amount"]
[1735274710527,0.08940028,96464.0,96463.0,0.051899]
[1735274710723,0.08784483,96464.0,96463.0,0.051899]
[1735274711118,0.00356157,96468.0,96457.0,0.051902]
[1735274711314,0.00356157,96468.0,96467.0,0.051896]
[1735274711723,0.08784483,96480.0,96456.0,0.37007822]
[1735274711925,0.08784483,96480.0,96479.0,0.05189]
[1735274712125,0.12438949,96483.0,96479.0,0.05189]
[1735274712325,0.12438949,96485.0,96479.0,0.05189]
[1735274712630,0.08890687,96480.0,96479.0,0.05189]
[1735274713228,0.09390687,96480.0,96479.0,0.05189]
[1735274714232,0.05189,96479.0,96472.0,0.051893]
[1735274714530,0.00035088,96478.0,96473.0,0.051893]
[1735274714836,0.00035088,96478.0,96471.0,0.24839701]
[1735274715028,0.00035088,96478.0,96474.0,0.051893]
[1735274715836,0.00235088,96478.0,96474.0,0.051893]
[1735274716534,0.00435088,96478.0,96470.0,0.24839701]
[1735274716730,0.00435088,96478.0,96475.0,0.051892]
[1735274717331,0.00435088,96478.0,96476.0,0.051891]
[1735274717720,0.15553219,96492.0,96491.0,0.051884]
[1735274718138,1.9e-07,96492.0,96491.0,0.051884]
[1735274718337,0.01488522,96504.0,96497.0,0.05188]
[1735274718644,0.21752129,96510.0,96508.0,0.051874]
[1735274718832,0.21752129,96510.0,96508.0,0.06321932]
[1735274719229,0.00076,96518.0,96517.0,0.05187]
[1735274719432,0.08902412,96509.0,96508.0,0.06321604]
[1735274719629,0.08902412,96509.0,96508.0,0.051874]
[1735274719938,0.006,96509.0,96508.0,0.051874]
[1735274720328,0.009,96509.0,96508.0,0.051874]
[1735274721028,0.09636574,96509.0,96508.0,0.051874]
[1735274721224,0.09036574,96509.0,96508.0,0.051874]
[1735274722035,0.08836574,96509.0,96508.0,0.051874]
[1735274722425,0.046,96521.0,96508.0,0.051874]
[1735274722630,0.046,96521.0,96520.0,0.051868]
[1735274723531,0.06182797,96521.0,96520.0,0.051868]
[1735274723840,0.06403785,96521.0,96520.0,0.051868]
[1735274724328,0.07003785,96521.0,96520.0,0.051868]
[1735274725230,0.06903785,96521.0,96520.0,0.051868]
[1735274725431,0.07203785,96521.0,96520.0,0.051868]
[1735274729443,0.051872,96513.0,96506.0,0.051875]
[1735274729741,0.051874,96509.0,96506.0,0.051875]
[1735274730138,0.045,96508.0,96506.0,0.051875]
[1735274730537,0.08748651,96507.0,96506.0,0.051875]
[1735274732043,0.05187,96516.0,96497.0,0.10332412]
[1735274732233,0.007,96507.0,96506.0,0.051875]
[1735274732434,0.011,96507.0,96506.0,0.051875]
[1735274732836,0.01156158,96507.0,96506.0,0.051875]
[1735274733231,0.00856158,96507.0,96506.0,0.051875]
[1735274733844,0.00356158,96507.0,96506.0,0.051875]
[1735274734237,0.00156158,96507.0,96506.0,0.051875]
[1735274734545,0.00456158,96507.0,96506.0,0.051875]
[1735274734940,0.00256158,96507.0,96506.0,0.051875]
[1735274735140,0.00556158,96507.0,96506.0,0.051875]
[1735274735744,0.00456158,96507.0,96506.0,0.051875]
[1735274736448,0.00056158,96507.0,96506.0,0.051875]
[1735274736645,0.00456158,96507.0,96506.0,0.051875]
[1735274736947,0.004,96507.0,96506.0,0.051875]
[1735274737148,0.00258451,96507.0,96506.0,0.051875]
[1735274737945,0.00058451,96507.0,96506.0,0.051875]
[1735274738241,0.08646977,96515.0,96506.0,0.051875]
[1735274738453,0.08646977,96515.0,96505.0,0.0433]
[1735274738454,0.08646977,96515.0,96514.0,0.051871]
[1735274738747,0.00322698,96520.0,96515.0,0.05187]
[1735274738936,0.00322698,96520.0,96516.0,0.05187]
[1735274739142,0.046,96521.0,96516.0,0.05187]
[1735274739447,0.08969675,96520.0,96517.0,0.051869]
[1735274741050,0.09469675,96520.0,96517.0,0.051869]
[1735274742654,0.09669675,96520.0,96517.0,0.051869]
[1735274742856,0.09669675,96520.0,96508.0,0.24732602]
[1735274743039,0.051876,96504.0,96503.0,0.17889703]
[1735274743241,0.051876,96504.0,96503.0,0.10231725]
[1735274743947,0.14040582,96504.0,96503.0,0.10231725]
[1735274744644,0.08852982,96504.0,96503.0,0.002]
[1735274744846,0.14040582,96504.0,96503.0,0.002]
[1735274745046,0.051876,96504.0,96503.0,0.002]
[1735274745546,0.14040582,96504.0,96503.0,0.002]
[1735274745948,0.14440582,96504.0,96503.0,0.002]
[1735274747053,0.051879,96499.0,96494.0,0.051881]
[1735274747544,0.00174014,96498.0,96494.0,0.051881]
[1735274748657,0.04494014,96498.0,96494.0,0.051881]
[1735274748848,0.04694014,96498.0,96494.0,0.051881]
[1735274749160,0.05188,96497.0,96494.0,0.051881]
[1735274749450,0.08891256,96496.0,96494.0,0.051881]
[1735274750750,0.09291256,96496.0,96494.0,0.051881]
[1735274751157,0.14479356,96496.0,96494.0,0.051881]
[1735274751856,0.14679356,96496.0,96494.0,0.051881]
[1735274762360,0.09491256,96496.0,96494.0,0.051881]
[1735274762764,0.02371256,96496.0,96495.0,0.0439]
[1735274763968,0.15511832,96517.0,96495.0,0.0439]
[1735274764262,0.15511832,96517.0,96501.0,0.051878]
[1735274764461,0.15511832,96517.0,96502.0,0.05559882]
[1735274764655,0.00159766,96516.0,96503.0,0.01159882]
[1735274764858,0.00159766,96516.0,96514.0,0.051871]
[1735274765168,0.34924,96519.0,96502.0,0.044]
[1735274765467,0.00064001,96518.0,96515.0,0.05187]
[1735274765862,0.36220162,96519.0,96502.0,0.044]
[1735274766166,0.01296162,96519.0,96518.0,0.051869]
[1735274766363,0.051863,96530.0,96518.0,0.01159568]
[1735274766564,0.051863,96530.0,96523.0,0.051866]
[1735274766769,0.051863,96530.0,96524.0,0.01159568]
[1735274767066,0.051863,96530.0,96525.0,0.01159568]
[1735274767263,0.051863,96530.0,96526.0,0.01159568]
[1735274767464,0.06482382,96530.0,96527.0,0.01159568]
[1735274767672,0.06482382,96530.0,96528.0,0.01159568]
[1735274767865,0.06482382,96530.0,96529.0,0.01159568]
[1735274768770,0.06482382,96530.0,96529.0,0.01156993]
[1735274770774,0.06482382,96530.0,96529.0,0.01456993]
[1735274771071,0.06482382,96530.0,96529.0,0.01856993]
[1735274771969,0.06482382,96530.0,96529.0,0.01857258]
[1735274772169,0.0665014,96530.0,96529.0,0.01857258]
[1735274772374,0.06857329,96530.0,96529.0,0.00511903]
[1735274774271,0.01671029,96530.0,96516.0,0.05187]
[1735274774472,0.051868,96521.0,96516.0,0.05187]
[1735274774973,0.00149781,96520.0,96516.0,0.05187]
[1735274775175,0.00149781,96520.0,96499.0,0.36172476]
[1735274775380,0.051877,96504.0,96499.0,0.30984576]
[1735274775566,0.142877,96503.0,96497.0,0.30984576]
[1735274775764,0.09249781,96503.0,96497.0,0.30984576]
[1735274776071,0.05188,96499.0,96497.0,0.30984576]
[1735274777077,0.00138137,96498.0,96495.0,0.051881]
[1735274778176,0.00638137,96498.0,96495.0,0.051881]
[1735274779073,0.00638137,96498.0,96478.0,0.30984576]
[1735274779272,0.051887,96485.0,96478.0,0.30984576]
[1735274779468,0.0458,96484.0,96478.0,0.30984576]
[1735274779774,0.13366041,96484.0,96478.0,0.30984576]
[1735274779974,0.13366041,96484.0,96472.0,0.30984576]
[1735274780177,0.10332412,96482.0,96472.0,0.30984576]
[1735274780377,0.0428,96481.0,96473.0,0.00992047]
[1735274780671,0.0435737,96481.0,96478.0,0.001]
[1735274780873,0.0435737,96481.0,96479.0,0.00992047]
[1735274781069,0.0435737,96481.0,96480.0,0.00992047]
[1735274781276,0.0435737,96481.0,96480.0,0.00991801]
[1735274782480,0.0435737,96481.0,96456.0,0.0439]
[1735274782680,0.10332412,96470.0,96461.0,0.00992016]
[1735274782983,0.10332412,96470.0,96462.0,0.00992016]
[1735274783176,0.09070499,96469.0,96463.0,0.00992016]
[1735274783382,0.09070499,96469.0,96456.0,0.0439]
[1735274783383,0.09070499,96469.0,96464.0,0.00992016]
[1735274783580,0.09070499,96469.0,96465.0,0.00992016]
[1735274783878,0.09070499,96469.0,96456.0,0.0439]
[1735274783879,0.09070499,96469.0,96466.0,0.00992016]
[1735274784183,0.09070499,96469.0,96467.0,0.0099157]
[1735274784184,0.051896,96469.0,96467.0,0.0099157]
[1735274784379,0.051896,96469.0,96461.0,0.002]
[1735274784579,0.10332412,96471.0,96464.0,0.001]
[1735274784786,0.00207318,96470.0,96449.0,0.30984576]
[1735274784974,0.10332412,96459.0,96450.0,0.00990912]
[1735274785174,0.0462,96458.0,96451.0,0.00990912]
[1735274785473,0.0462,96458.0,96435.0,0.0424]
[1735274785669,0.0462,96458.0,96448.0,0.00989816]
[1735274785874,0.00207372,96457.0,96449.0,0.00989816]
[1735274786083,0.00207372,96457.0,96435.0,0.0424]
[1735274786286,0.00207372,96457.0,96448.0,0.00989816]
[1735274786484,0.00207372,96457.0,96435.0,0.0424]
[1735274787782,0.00407372,96457.0,96435.0,0.0424]
[1735274787981,0.0445,96456.0,96435.0,0.0424]
[1735274788384,0.09251503,96455.0,96435.0,0.0424]
[1735274789385,0.09251503,96455.0,96436.0,0.051913]
[1735274789683,0.09251503,96455.0,96439.0,0.01129754]
[1735274789984,0.10332412,96450.0,96440.0,0.01129754]
[1735274790185,0.10332412,96450.0,96441.0,0.01129754]
[1735274790381,0.00223035,96449.0,96442.0,0.01129754]
[1735274790585,0.00223035,96449.0,96438.0,7.944e-05]
[1735274790887,0.00223035,96449.0,96439.0,0.00987106]
[1735274791087,0.00223035,96449.0,96440.0,0.00987129]
[1735274791294,0.00223035,96449.0,96441.0,0.0098713]
[1735274791489,0.00223035,96449.0,96442.0,0.001]
[1735274792180,0.00223035,96449.0,96439.0,0.001]
[1735274792376,0.00223035,96449.0,96440.0,0.01128612]
[1735274792578,0.00223035,96449.0,96441.0,0.01128612]
[1735274792786,0.00223035,96449.0,96442.0,0.01228612]
[1735274793086,0.00223035,96449.0,96442.0,0.001]
[1735274794374,0.00223035,96449.0,96439.0,0.001]
[1735274794574,0.00223035,96449.0,96440.0,0.02113728]
[1735274794771,0.00223035,96449.0,96441.0,0.02113728]
[1735274794981,0.00223035,96449.0,96442.0,0.001]
[1735274795577,0.00223035,96449.0,96438.0,7.944e-05]
[1735274795781,0.00223035,96449.0,96439.0,0.02213425]
[1735274795979,0.00223035,96449.0,96440.0,0.02113425]
[1735274796186,0.00223035,96449.0,96441.0,0.02113425]
[1735274796381,0.00223035,96449.0,96439.0,0.001]
[1735274796589,0.00223035,96449.0,96440.0,0.02113546]
[1735274796780,0.00223035,96449.0,96439.0,0.001]
[1735274796781,0.00223035,96449.0,96441.0,0.02113546]
[1735274796978,0.00223035,96449.0,96442.0,0.02113546]
[1735274797286,0.00223035,96449.0,96439.0,0.001]
[1735274797490,0.00223035,96449.0,96440.0,0.02113529]
[1735274797688,0.00223035,96449.0,96441.0,0.02113529]
[1735274797887,0.00223035,96449.0,96442.0,0.02213529]
[1735274798180,0.00223035,96449.0,96443.0,0.02114003]
[1735274798388,0.00223035,96449.0,96439.0,0.001]
[1735274798587,0.00223035,96449.0,96440.0,0.02114173]
[1735274798789,0.051908,96446.0,96441.0,0.02114173]
[1735274798987,0.051908,96446.0,96442.0,0.001]
[1735274799291,0.09091255,96445.0,96442.0,0.001]
[1735274800083,0.051909,96444.0,96442.0,0.001]
[1735274800585,0.05191,96441.0,96439.0,0.001]
[1735274800789,0.05191,96441.0,96440.0,0.01130155]
[1735274801088,0.05191,96441.0,96429.0,0.0453]
[1735274801284,0.05191,96441.0,96430.0,0.0113017]
[1735274801489,0.00285745,96440.0,96431.0,0.0113017]
[1735274801688,0.00285745,96440.0,96439.0,0.001]
[1735274801890,0.00285745,96440.0,96439.0,0.0123017]
[1735274802188,0.00285745,96440.0,96439.0,0.0113017]
[1735274802780,0.00285745,96440.0,96439.0,0.00066288]
[1735274802987,0.00285745,96440.0,96429.0,0.001]
[1735274803200,0.09507384,96439.0,96429.0,0.001]
[1735274803492,0.19839796,96439.0,96429.0,0.001]
[1735274803696,0.0918262,96438.0,96429.0,0.001]
[1735274803889,0.0918262,96438.0,96418.0,0.045]
[1735274804193,0.10332412,96428.0,96418.0,0.045]
[1735274804385,0.051921,96422.0,96418.0,0.045]
[1735274804891,0.06722673,96421.0,96418.0,0.045]
[1735274805093,0.06722673,96421.0,96418.0,0.046]
[1735274806089,0.051922,96420.0,96418.0,0.006]
[1735274806495,0.08695366,96419.0,96418.0,0.006]
[1735274806690,0.08695366,96419.0,96418.0,0.001]
[1735274806996,0.08695366,96419.0,96418.0,0.006]
[1735274807494,0.08695366,96419.0,96418.0,0.001]
[1735274807696,0.08695366,96419.0,96418.0,0.006]
[1735274808705,0.08795366,96419.0,96418.0,0.006]
[1735274810988,0.08795366,96419.0,96418.0,0.19168817]
[1735274812093,0.08795366,96419.0,96418.0,0.006]
[1735274813792,0.08795366,96419.0,96418.0,0.01592338]
[1735274814401,0.08795366,96419.0,96418.0,0.01592326]
[1735274815197,0.08795366,96419.0,96418.0,0.01592392]
[1735274815697,0.08795366,96419.0,96418.0,0.006]
[1735274816001,0.08795366,96419.0,96418.0,0.25335661]
[1735274819803,0.08795366,96419.0,96418.0,0.26327701]
[1735274820800,0.08795366,96419.0,96418.0,0.26327745]
[1735274821412,0.08795366,96419.0,96418.0,0.006]
[1735274821701,0.08795366,96419.0,96418.0,0.01592097]
[1735274823408,0.08795366,96419.0,96418.0,0.01592453]
[1735274825797,0.08795366,96419.0,96418.0,0.26328114]
[1735274826505,0.08795366,96419.0,96418.0,0.26328596]
[1735274826805,0.08795366,96419.0,96418.0,0.25335661]
[1735274827407,0.08795366,96419.0,96418.0,0.006]
[1735274827705,0.08789698,96419.0,96418.0,0.006]
[1735274829103,0.17659698,96419.0,96418.0,0.006]
[1735274829308,0.22339698,96419.0,96418.0,0.006]
[1735274829700,0.31640684,96419.0,96418.0,0.19252303]
[1735274831223,0.22339698,96419.0,96418.0,0.006]
[1735274831708,0.22339698,96419.0,96418.0,0.001]
[1735274831895,0.051925,96414.0,96413.0,0.18652303]
[1735274832405,0.14414592,96414.0,96412.0,0.18652303]
[1735274833110,0.14514592,96414.0,96413.0,0.001]
[1735274833804,0.14514592,96414.0,96409.0,0.24735661]
[1735274833805,0.051927,96410.0,96409.0,0.24735661]
[1735274834300,0.14446243,96410.0,96409.0,0.24735661]
[1735274834909,0.14446243,96410.0,96398.0,0.30984576]
[1735274834910,0.14446243,96410.0,96408.0,0.24735661]
[1735274835610,0.12400693,96413.0,96409.0,0.004]
[1735274835801,0.12400693,96413.0,96410.0,0.00993606]
[1735274836008,0.06387411,96412.0,96411.0,0.00993606]
[1735274837004,0.11580011,96412.0,96411.0,0.00993606]
[1735274837807,0.11580011,96412.0,96411.0,0.01493606]
[1735274838813,0.11680011,96412.0,96411.0,0.005]
[1735274840914,0.11680011,96412.0,96411.0,0.01635651]
[1735274841708,0.11680011,96412.0,96411.0,0.005]
[1735274842009,0.11680011,96412.0,96411.0,0.01635622]
[1735274842512,0.11680011,96412.0,96411.0,0.26371283]
[1735274844215,0.11680011,96412.0,96411.0,0.01135622]
[1735274844216,0.21109434,96412.0,96411.0,0.01135622]
[1735274844709,0.21109434,96412.0,96410.0,0.24735661]
[1735274844915,0.21109434,96412.0,96411.0,0.01136899]
[1735274845506,0.21009434,96412.0,96411.0,0.01136899]
[1735274845711,0.21009434,96412.0,96411.0,0.2587256]
[1735274846506,0.20909434,96412.0,96411.0,0.2587256]
[1735274846704,0.21009434,96412.0,96411.0,0.2587256]
[1735274847308,0.20909434,96412.0,96411.0,0.2587256]
[1735274847514,0.21009434,96412.0,96411.0,0.2587256]
[1735274847909,0.21009434,96412.0,96411.0,0.25872726]
[1735274848512,0.11680011,96412.0,96411.0,0.25872726]
[1735274849717,0.11680011,96412.0,96411.0,0.01137065]
[1735274851517,0.11680011,96412.0,96411.0,0.01137196]
[1735274854035,0.11680011,96412.0,96411.0,0.01137896]
[1735274855733,0.11680011,96412.0,96411.0,0.26024601]
[1735274857034,0.11680011,96412.0,96411.0,0.26024526]
[1735274858628,0.11680011,96412.0,96411.0,0.01137821]
[1735274860042,0.06487411,96412.0,96406.0,0.30984576]
[1735274860344,0.051928,96409.0,96407.0,0.01136718]
[1735274860640,0.051928,96409.0,96408.0,0.01136718]
[1735274860941,0.11733164,96409.0,96408.0,0.01136556]
[1735274861335,0.21073743,96409.0,96408.0,0.01136556]
[1735274862651,0.11733164,96409.0,96408.0,0.01136556]
[1735274864841,0.21073743,96409.0,96408.0,0.01136556]
[1735274866136,0.11733164,96409.0,96408.0,0.01136556]
[1735274868141,0.1289682,96409.0,96408.0,0.01136556]
[1735274868846,0.1289682,96409.0,96408.0,0.32121132]
[1735274869444,0.1289682,96409.0,96408.0,0.32121428]
[1735274870039,0.1289682,96409.0,96408.0,0.32121514]
[1735274870441,0.1289682,96409.0,96408.0,0.01136938]
[1735274871839,0.1289682,96409.0,96408.0,0.0113772]
[1735274875650,0.1289682,96409.0,96408.0,0.01137728]
[1735274879147,0.1289682,96409.0,96408.0,0.01137613]
[1735274879349,0.0770402,96409.0,96408.0,0.01137613]
[1735274879651,0.15511832,96417.0,96416.0,0.051924]
[1735274879855,0.1665528,96417.0,96416.0,0.06330013]
[1735274880353,0.1009005,96417.0,96416.0,0.06330013]
[1735274880954,0.1029005,96417.0,96416.0,0.06329941]
[1735274881252,0.1029005,96417.0,96416.0,0.0632994]
[1735274881442,0.1548235,96417.0,96406.0,0.01133415]
[1735274881755,0.05193,96404.0,96399.0,0.051933]
[1735274882152,0.0581108,96403.0,96399.0,0.051933]
[1735274883252,0.0581108,96403.0,96400.0,0.102]
[1735274883253,0.09341752,96402.0,96400.0,0.102]
[1735274883452,0.051932,96401.0,96400.0,0.102]
[1735274884152,0.1100428,96401.0,96400.0,0.102]
[1735274885159,0.1100428,96401.0,96400.0,0.1]
[1735274885351,0.0581108,96401.0,96400.0,0.102]
[1735274885557,0.0591108,96401.0,96400.0,0.102]
[1735274885948,0.0591108,96401.0,96400.0,0.1]
[1735274886143,0.0591108,96401.0,96400.0,0.102]
[1735274886354,0.0591108,96401.0,96400.0,0.69038636]
[1735274886859,0.07065541,96401.0,96400.0,0.69038636]
[1735274887959,0.07065541,96401.0,96400.0,0.102]
[1735274890055,0.11855541,96401.0,96400.0,0.102]
[1735274894555,0.07065541,96401.0,96400.0,0.102]
[1735274899856,0.19497325,96401.0,96400.0,0.102]
[1735274900553,0.19497325,96401.0,96400.0,0.11335494]
[1735274900962,0.07065541,96401.0,96400.0,0.11335494]
[1735274902159,0.07065541,96401.0,96400.0,0.1133523]
[1735274903068,0.12431784,96408.0,96407.0,0.051929]
[1735274903273,0.12431784,96408.0,96407.0,0.0632813]
[1735274903472,0.13610923,96408.0,96407.0,0.0632813]
[1735274903666,0.1855385,96421.0,96413.0,0.051926]
[1735274903872,0.1855385,96421.0,96413.0,0.0632783]
[1735274904068,0.09256422,96414.0,96413.0,0.0632783]
[1735274904461,0.01126774,96414.0,96413.0,0.0632783]
[1735274904662,0.051921,96422.0,96413.0,0.0632783]
[1735274904974,0.051921,96422.0,96413.0,0.051926]
[1735274905275,0.051921,96422.0,96414.0,0.01175218]
[1735274905469,0.0913034,96421.0,96415.0,0.01175218]
[1735274905659,0.0913034,96421.0,96416.0,0.01175218]
[1735274905861,0.0913034,96421.0,96410.0,0.31124955]
[1735274905862,0.0913034,96421.0,96417.0,0.01175218]
[1735274906168,0.00207389,96437.0,96410.0,0.31124955]
[1735274906169,0.098022,96420.0,96418.0,0.01175165]
[1735274906470,0.098022,96420.0,96415.0,0.051924]
[1735274906471,0.051922,96420.0,96419.0,0.01175165]
[1735274906670,0.051922,96420.0,96419.0,0.19809038]
[1735274906859,0.0810958,96420.0,96419.0,0.19809038]
[1735274907256,0.09320226,96421.0,96419.0,0.24998584]
[1735274907472,0.09320226,96421.0,96420.0,0.01172511]
[1735274907767,0.01176015,96426.0,96420.0,0.01172511]
[1735274907959,0.051918,96428.0,96421.0,0.01172511]
[1735274908161,0.09331584,96425.0,96422.0,0.01172511]
[1735274908357,0.09331584,96425.0,96423.0,0.01172511]
[1735274908568,0.09331584,96425.0,96424.0,0.01172511]
[1735274908569,0.051919,96425.0,96424.0,0.01172511]
[1735274908958,0.14395321,96425.0,96424.0,0.01168511]
[1735274910066,0.14695321,96425.0,96424.0,0.01168511]
[1735274910664,0.14395321,96425.0,96424.0,0.01168511]
[1735274910872,0.15195321,96425.0,96424.0,0.01168511]
[1735274911774,0.051925,96414.0,96413.0,0.18623905]
[1735274912278,0.14386564,96414.0,96413.0,0.18623905]
[1735274912971,0.14486564,96414.0,96413.0,0.18623905]
[1735274913168,0.14486564,96414.0,96413.0,0.03563905]
[1735274913367,0.051927,96410.0,96409.0,0.24845164]
[1735274913871,0.09222378,96410.0,96400.0,0.34845164]
[1735274914076,0.051932,96401.0,96400.0,0.34845164]
[1735274914572,0.14448716,96401.0,96400.0,0.34845164]
[1735274915175,0.14448716,96401.0,96400.0,0.1]
[1735274915379,0.14548716,96401.0,96400.0,0.101]
[1735274916880,0.14548716,96401.0,96400.0,0.103]
[1735274920180,0.15719653,96401.0,96400.0,0.103]
[1735274923782,0.15719653,96401.0,96400.0,0.11458009]
[1735274925790,0.15719653,96401.0,96400.0,0.11457861]
[1735274926283,0.15719653,96401.0,96400.0,0.11457862]
[1735274926988,0.15719653,96401.0,96400.0,0.103]
[1735274931993,0.051942,96383.0,96382.0,0.0509562]
[1735274932189,0.051942,96383.0,96382.0,0.06252764]
[1735274932390,0.14331723,96383.0,96382.0,0.06252786]
[1735274932893,0.14331723,96383.0,96382.0,0.06253411]
[1735274933187,0.14431723,96383.0,96382.0,0.06753411]
[1735274933700,0.14531723,96383.0,96382.0,0.06853411]
[1735274934595,0.14531723,96383.0,96382.0,0.06853589]
[1735274935387,0.14531723,96383.0,96382.0,0.06853464]
[1735274937085,0.1594194,96383.0,96382.0,0.06853464]
[1735274941596,0.1594194,96383.0,96382.0,0.06857659]
[1735274943395,0.1594194,96383.0,96382.0,0.06860833]
[1735274946597,0.1594194,96383.0,96382.0,0.06861051]
[1735274949699,0.1594194,96383.0,96382.0,0.06861353]
[1735274950801,0.1594194,96383.0,96382.0,0.01921353]
[1735274950997,0.1594194,96383.0,96382.0,0.26766517]
[1735274952502,0.1594194,96383.0,96382.0,0.01921353]
[1735274952894,0.1594194,96383.0,96382.0,0.01765733]
[1735274958806,0.1594194,96383.0,96382.0,0.01764627]
[1735274959417,0.1594194,96383.0,96382.0,0.01764465]
[1735274959995,0.1594194,96383.0,96382.0,0.01764679]
[1735274960708,0.1594194,96383.0,96382.0,0.26609843]
[1735274961207,0.1594194,96383.0,96382.0,0.26609878]
[1735274963406,0.1594194,96383.0,96382.0,0.01764714]
[1735274965098,0.1594194,96383.0,96382.0,0.01763723]
[1735274965500,0.1074774,96383.0,96382.0,0.01763723]
[1735274965700,0.1855385,96393.0,96382.0,0.01763723]
[1735274965701,0.1855385,96393.0,96392.0,0.051937]
[1735274965993,0.1855385,96393.0,96392.0,0.06357423]
[1735274966197,0.27825741,96393.0,96392.0,0.06357423]
[1735274966606,0.29628071,96393.0,96392.0,0.06357423]
[1735274966805,0.05595741,96393.0,96392.0,0.06657423]
[1735274967017,0.00084,96403.0,96401.0,0.051932]
[1735274967207,0.12431525,96409.0,96403.0,0.051931]
[1735274967510,0.12431525,96409.0,96408.0,0.051928]
[1735274967808,0.17106026,96409.0,96408.0,0.06356523]
[1735274968107,0.17106026,96409.0,96408.0,0.06352424]
[1735274968311,0.17106026,96409.0,96408.0,0.00517288]
[1735274968505,0.051931,96402.0,96401.0,0.001]
[1735274968906,0.14411971,96402.0,96401.0,0.37449946]
[1735274969803,0.14511971,96402.0,96401.0,0.37549946]
[1735274970514,0.14511971,96402.0,96401.0,0.002]
[1735274970714,0.14511971,96402.0,96401.0,0.003]
[1735274973808,0.09318871,96402.0,96401.0,0.003]
[1735274974109,0.09318871,96402.0,96401.0,0.098]
[1735274976111,0.09318871,96402.0,96401.0,0.052]
[1735274976311,0.09318871,96402.0,96401.0,0.003]
[1735274978411,0.18608871,96402.0,96401.0,0.003]
[1735274979019,0.18608871,96402.0,96401.0,0.0129296]
[1735274980519,0.18608871,96402.0,96401.0,0.02436225]
[1735274982016,0.18608871,96402.0,96401.0,0.01443265]
[1735274982614,0.18608871,96402.0,96390.0,0.24837191]
[1735274982820,0.10346478,96400.0,96390.0,0.24837191]
[1735274983316,0.09286687,96399.0,96391.0,0.00993002]
[1735274983513,0.09286687,96399.0,96392.0,0.00993002]
[1735274983817,0.051936,96394.0,96393.0,0.00993002]
[1735274984318,0.14348493,96394.0,96393.0,0.00993002]
[1735274985212,0.14448493,96394.0,96393.0,0.00993002]
[1735274986321,0.14448493,96394.0,96393.0,0.003]
[1735274987623,0.10346478,96393.0,96375.0,0.24837191]
[1735274987817,0.10346478,96385.0,96375.0,0.24837191]
[1735274988017,0.051945,96378.0,96375.0,0.24837191]
[1735274988214,0.051945,96378.0,96376.0,0.00994125]
[1735274988409,0.051945,96378.0,96377.0,0.00994125]
[1735274989019,0.14374106,96378.0,96377.0,0.00994125]
[1735274989728,0.14474106,96378.0,96377.0,0.01594125]
[1735274991021,0.09279606,96378.0,96377.0,0.01594125]
[1735274991524,0.09379606,96378.0,96377.0,0.01594125]
[1735274992129,0.09379606,96378.0,96377.0,0.01594599]
[1735274993225,0.1099805,96378.0,96377.0,0.01594599]
[1735274994428,0.1619245,96378.0,96377.0,0.01594599]
[1735274995020,0.1619245,96378.0,96377.0,0.01595239]
[1735274996121,0.051947,96374.0,96373.0,0.24837191]
[1735274996519,0.14434139,96374.0,96373.0,0.24837191]
[1735274997534,0.14534139,96374.0,96373.0,0.24837191]
[1735274997730,0.14634139,96374.0,96373.0,0.25337191]
[1735274997930,0.14634139,96374.0,96373.0,0.005]
[1735274999437,0.09439439,96374.0,96373.0,0.005]
[1735275000732,0.09439439,96374.0,96373.0,0.25337191]
[1735275002026,0.09439439,96374.0,96373.0,0.60912334]
[1735275003533,0.09439439,96374.0,96373.0,0.31582244]
[1735275004937,0.14634139,96374.0,96373.0,0.31582244]
[1735275005229,0.09439439,96374.0,96373.0,0.31582244]
[1735275006137,0.09439439,96374.0,96373.0,0.005]
[1735275008937,0.09439439,96374.0,96373.0,0.31582244]
[1735275010331,0.09439439,96374.0,96373.0,0.29876799]
[1735275012238,0.09439439,96374.0,96373.0,0.31012117]
[1735275015239,0.09439439,96374.0,96373.0,0.29876799]
[1735275015835,0.09439439,96374.0,96373.0,0.64897801]
[1735275016039,0.01501558,96380.0,96375.0,0.051946]
[1735275016239,0.09248504,96374.0,96373.0,0.64897801]
[1735275016445,0.09248504,96374.0,96373.0,0.35071499]
[1735275016645,0.09248504,96379.0,96376.0,0.051945]
[1735275016948,0.06700483,96381.0,96378.0,0.051944]
[1735275017338,0.09257532,96379.0,96378.0,0.051944]
[1735275017736,0.001,96379.0,96378.0,0.051944]
[1735275017938,0.001,96379.0,96378.0,0.36318179]
[1735275018139,0.09397368,96379.0,96378.0,0.36318179]
[1735275019042,0.09397368,96379.0,96378.0,0.34193267]
[1735275019642,0.09397368,96379.0,96378.0,0.34293267]
[1735275020145,0.09497368,96379.0,96378.0,0.34293267]
[1735275021642,0.02999978,96379.0,96378.0,0.34293267]
[1735275021838,0.02999978,96379.0,96378.0,0.64293267]
[1735275022449,7.8e-07,96379.0,96378.0,0.64293267]
[1735275022651,3.9e-07,96379.0,96378.0,0.69904107]
[1735275022943,0.00155659,96394.0,96393.0,0.051936]
[1735275023151,0.12431525,96395.0,96393.0,0.051936]
[1735275023338,0.12431525,96395.0,96393.0,0.351936]
[1735275023540,0.1393,96418.0,96393.0,0.351936]
[1735275023541,0.09310355,96407.0,96401.0,0.051932]
[1735275023950,0.09310355,96407.0,96406.0,0.051929]
[1735275024353,0.1852171,96407.0,96406.0,0.051929]
[1735275024547,0.09211355,96407.0,96406.0,0.051929]
[1735275024850,0.001,96407.0,96406.0,0.051929]
[1735275025249,0.09340472,96407.0,96406.0,0.051929]
[1735275026543,0.09440472,96407.0,96406.0,0.051929]
[1735275026951,0.09340472,96407.0,96406.0,0.051929]
[1735275027153,0.09340472,96407.0,96406.0,0.052929]
[1735275028353,7.2e-07,96407.0,96406.0,0.4115579]
[1735275028650,7.2e-07,96407.0,96406.0,0.5050579]
[1735275028854,7.2e-07,96407.0,96406.0,0.54607638]
[1735275029256,0.12431525,96426.0,96406.0,0.54607638]
[1735275029257,2.7e-07,96436.0,96406.0,0.93912883]
[1735275029444,2.7e-07,96436.0,96435.0,0.051914]
[1735275029758,0.09269127,96436.0,96435.0,0.0632429]
[1735275030350,0.09369127,96436.0,96435.0,0.051914]
[1735275030745,0.102691,96436.0,96435.0,0.051914]
[1735275032552,0.015,96436.0,96435.0,0.051914]
[1735275032759,0.10823511,96436.0,96435.0,0.051914]
[1735275037262,0.09423511,96436.0,96435.0,0.052914]
[1735275039153,1.1e-07,96436.0,96435.0,0.052914]
[1735275039356,0.0033469,96436.0,96435.0,0.052914]